[Event "IV Copa Marcel Duchamp 2020"]
[Site "Montevideo"]
[Date "2020.02.15"]
[Round "9.7"]
[White "Diaz Hollemaert, Nahuel"]
[Black "Lopez Azambuja, Nicolas"]
[Result "1/2-1/2"]
[ECO "A13"]
[WhiteElo "2450"]
[BlackElo "2310"]
[Annotator "ChessBase"]
[PlyCount "43"]
[EventDate "2020.02.08"]
[EventType "swiss"]
[EventCountry "URU"]
[SourceTitle "playchess.com"]
[Source "ChessBase"]
[SourceQuality "1"]
[TimeControl "5400+30"]

1. c4 {[%emt 0:04:49]} Nf6 {[%emt 0:00:52]} 2. g3 {[%emt 0:04:11]} e6 {[%emt 0:01:01]} 3. Bg2 {[%emt 0:00:05]} d5 {[%emt 0:00:30]} 4. Nf3 {[%emt 0:00:57]} dxc4 {[%emt 0:02:29]} 5. Qa4+ {[%emt 0:00:07]} Bd7 {[%emt 0:00:33]} 6. Qxc4 {[%emt 0:00:04]} c5 {[%emt 0:00:15]} 7. Ne5 {[%emt 0:11:12]} Qc8 {[%emt 0:03:37]} 8. b3 {[%emt 0:09:17]} Nc6 {[%emt 0:02:52]} 9. f4 {[%emt 0:11:33]} b5 {[%emt 0:17:53]} 10. Qc2 {[%emt 0:07:41]} Nxe5 {[%emt 0:04:25]} 11. fxe5 {[%emt 0:00:01]} Bc6 {[%emt 0:01:08]} 12. exf6 {[%emt 0:01:56]} Bxg2 {[%emt 0:00:08]} 13. Rg1 {[%emt 0:00:03]} Bb7 {[%emt 0:05:29]} 14. fxg7 {[%emt 0:09:24]} Bxg7 {[%emt 0:02:36]} 15. Bb2 {[%emt 0:00:04]} e5 {[%emt 0:01:22]} 16. g4 {[%emt 0:08:03]} O-O {[%emt 0:03:46]} 17. Na3 {[%emt 0:06:29]} Qc6 {[%emt 0:04:36]} 18. Rc1 {[%emt 0:00:38]} Rac8 {[%emt 0:01:48]} 19. Qf5 {[%emt 0:00:31]} Rcd8 {[%emt 0:08:01]} 20. Qf2 {[%emt 0:04:47]} Qd6 {[%emt 0:13:29]} 21. Nb1 {[%emt 0:08:28]} Rc8 {[%emt 0:03:56]} 22. Rg3 {[%emt 0:01:29]} 1/2-1/2

[Event "IV Copa Marcel Duchamp 2020"]
[Site "Montevideo"]
[Date "2020.02.15"]
[Round "9.8"]
[White "Roselli Mailhe, Bernardo"]
[Black "Brizzi, Milagros Tatiana"]
[Result "1-0"]
[ECO "D12"]
[WhiteElo "2433"]
[BlackElo "2022"]
[Annotator "ChessBase"]
[PlyCount "145"]
[EventDate "2020.02.08"]
[EventType "swiss"]
[EventCountry "URU"]
[SourceTitle "playchess.com"]
[Source "ChessBase"]
[SourceQuality "1"]
[TimeControl "5400+30"]

1. d4 {[%emt 0:00:00]} d5 {[%emt 0:00:00]} 2. c4 {[%emt 0:00:00]} c6 {[%emt 0:00:00]} 3. Nf3 {[%emt 0:00:00]} Nf6 {[%emt 0:00:03]} 4. e3 {[%emt 0:00:00]} Bf5 {[%emt 0:00:33]} 5. Nc3 {[%emt 0:00:02]} e6 {[%emt 0:00:10]} 6. Nh4 {[%emt 0:00:09]} Bg6 {[%emt 0:00:17]} 7. Nxg6 {[%emt 0:00:54]} hxg6 {[%emt 0:00:05]} 8. Bd2 {[%emt 0:00:43]} Nbd7 {[%emt 0:03:35]} 9. cxd5 {[%emt 0:05:13]} exd5 {[%emt 0:00:27]} 10. Qc2 {[%emt 0:00:08]} Be7 {[%emt 0:00:44]} 11. Bd3 {[%emt 0:06:31]} Qc7 {[%emt 0:03:22]} 12. h3 {[%emt 0:00:17]} Rc8 {[%emt 0:02:35]} 13. O-O-O {[%emt 0:06:44]} c5 {[%emt 0:12:23]} 14. Kb1 {[%emt 0:15:29]} a6 {[%emt 0:02:59]} 15. g4 {[%emt 0:05:08]} c4 {[%emt 0:02:53]} 16. Be2 {[%emt 0:09:00]} Qc6 {[%emt 0:01:24]} 17. Bf3 {[%emt 0:07:02]} Nb6 {[%emt 0:16:42]} 18. g5 {[%emt 0:02:13]} Nh5 {[%emt 0:02:22]} 19. Rhg1 {[%emt 0:06:25]} Rd8 {[%emt 0:03:31]} 20. Rde1 {[%emt 0:03:24]} Kf8 {[%emt 0:06:30]} 21. Qd1 {[%emt 0:11:50]} Qc7 {[%emt 0:04:48]} 22. a3 {[%emt 0:03:57]} Qd7 {[%emt 0:05:05]} 23. Bg4 {[%emt 0:00:43]} Qe8 {[%emt 0:01:14]} 24. f4 {[%emt 0:00:15]} f5 {[%emt 0:01:17]} 25. gxf6 {[%emt 0:05:08]} gxf6 {[%emt 0:00:41]} 26. f5 {[%emt 0:00:55]} Ng7 {[%emt 0:01:45]} 27. fxg6 {[%emt 0:03:09]} Qxg6+ {[%emt 0:00:17]} 28. Ka2 {[%emt 0:00:19]} Qf7 {[%emt 0:01:34]} 29. Ne2 {[%emt 0:01:33]} Nc8 {[%emt 0:00:47]} 30. Bxc8 {[%emt 0:01:32]} Rxc8 {[%emt 0:00:06]} 31. Nf4 {[%emt 0:00:03]} Rg8 {[%emt 0:03:14]} 32. Qf3 {[%emt 0:02:39]} Ne6 {[%emt 0:06:34]} 33. Rxg8+ {[%emt 0:01:28]} Qxg8 {[%emt 0:02:05]} 34. Qxd5 {[%emt 0:01:40]} Nxf4 {[%emt 0:00:42]} 35. Qxg8+ {[%emt 0:00:11]} Kxg8 {[%emt 0:00:05]} 36. exf4 {[%emt 0:00:04]} Kf7 {[%emt 0:00:07]} 37. f5 {[%emt 0:00:46]} Rd8 {[%emt 0:00:47]} 38. Bc3 {[%emt 0:00:38]} Rd5 {[%emt 0:00:21]} 39. Rf1 {[%emt 0:00:11]} Bf8 {[%emt 0:00:14]} 40. Kb1 {[%emt 0:00:29]} b5 {[%emt 0:02:25]} 41. Kc2 {[%emt 0:00:39]} Bh6 {[%emt 0:01:14]} 42. Rf3 {[%emt 0:00:08]} Bg5 {[%emt 0:00:26]} 43. Kd1 {[%emt 0:00:43]} a5 {[%emt 0:00:24]} 44. Bxa5 {[%emt 0:01:11]} Rxd4+ {[%emt 0:00:07]} 45. Ke2 {[%emt 0:00:08]} Re4+ {[%emt 0:00:35]} 46. Kf1 {[%emt 0:00:13]} Re5 {[%emt 0:00:52]} 47. Bc3 {[%emt 0:00:20]} Re4 {[%emt 0:00:09]} 48. Kg2 {[%emt 0:00:49]} Bh4 {[%emt 0:00:16]} 49. Rf1 {[%emt 0:00:46]} Bg5 {[%emt 0:01:49]} 50. Rd1 {[%emt 0:01:48]} Re2+ {[%emt 0:02:53]} 51. Kf3 {[%emt 0:00:06]} Re3+ {[%emt 0:00:09]} 52. Kf2 {[%emt 0:00:09]} Rxh3 {[%emt 0:05:24]} 53. Rd7+ {[%emt 0:00:05]} Ke8 {[%emt 0:00:34]} 54. Rb7 {[%emt 0:00:05]} Rd3 {[%emt 0:02:29]} 55. Rxb5 {[%emt 0:00:14]} Kd7 {[%emt 0:00:15]} 56. Rb4 {[%emt 0:02:11]} Rd5 {[%emt 0:00:15]} 57. Rxc4 {[%emt 0:00:08]} Rxf5+ {[%emt 0:00:03]} 58. Ke2 {[%emt 0:00:19]} Rb5 {[%emt 0:01:30]} 59. a4 {[%emt 0:00:49]} Rb3 {[%emt 0:01:04]} 60. Kd3 {[%emt 0:00:48]} Rb6 {[%emt 0:00:22]} 61. Bd4 {[%emt 0:00:58]} Ra6 {[%emt 0:00:51]} 62. b3 {[%emt 0:00:42]} Ke6 {[%emt 0:01:38]} 63. Rc5 {[%emt 0:00:31]} Bf4 {[%emt 0:00:55]} 64. Kc4 {[%emt 0:00:28]} Bd6 {[%emt 0:00:12]} 65. Rh5 {[%emt 0:00:31]} Ra8 {[%emt 0:00:44]} 66. a5 {[%emt 0:00:23]} Be5 {[%emt 0:02:00]} 67. Bb6 {[%emt 0:00:23]} Rc8+ {[%emt 0:00:55]} 68. Kb5 {[%emt 0:00:13]} Kd5 {[%emt 0:00:09]} 69. a6 {[%emt 0:00:22]} Ra8 {[%emt 0:00:30]} 70. a7 {[%emt 0:00:20]} Kd6 {[%emt 0:00:33]} 71. Rh1 {[%emt 0:00:20]} Kd7 {[%emt 0:00:32]} 72. Rd1+ {[%emt 0:00:09]} Ke6 {[%emt 0:00:48]} 73. Rd8 {[%emt 0:00:30] Kd5} 1-0

[Event "IV Copa Marcel Duchamp 2020"]
[Site "Montevideo"]
[Date "2020.02.15"]
[Round "9.9"]
[White "Amura, Claudia"]
[Black "Menna Barreto, Felipe Kubiaki"]
[Result "1/2-1/2"]
[ECO "D20"]
[WhiteElo "2245"]
[BlackElo "2395"]
[Annotator "ChessBase"]
[PlyCount "65"]
[EventDate "2020.02.08"]
[EventType "swiss"]
[EventCountry "URU"]
[SourceTitle "playchess.com"]
[Source "ChessBase"]
[SourceQuality "1"]
[TimeControl "5400+30"]

1. d4 {[%emt 0:00:00]} d5 {[%emt 0:00:00]} 2. c4 {[%emt 0:01:21]} dxc4 {[%emt 0:00:29]} 3. e4 {[%emt 0:01:08]} Nc6 {[%emt 0:01:06]} 4. Be3 {[%emt 0:03:47]} Nf6 {[%emt 0:04:23]} 5. e5 {[%emt 0:15:16]} Nd5 {[%emt 0:05:27]} 6. Bxc4 {[%emt 0:00:10]} Bf5 {[%emt 0:11:47]} 7. Nc3 {[%emt 0:07:13]} Ncb4 {[%emt 0:05:47]} 8. Rc1 {[%emt 0:02:16]} e6 {[%emt 0:02:51]} 9. Nf3 {[%emt 0:04:47]} Be7 {[%emt 0:01:30]} 10. a3 {[%emt 0:04:07]} Nxc3 {[%emt 0:00:55]} 11. bxc3 {[%emt 0:00:05]} Nd5 {[%emt 0:00:17]} 12. Qb3 {[%emt 0:00:15]} O-O {[%emt 0:05:12]} 13. O-O {[%emt 0:00:13]} Rb8 {[%emt 0:02:08]} 14. Rfd1 {[%emt 0:03:11]} c6 {[%emt 0:03:04]} 15. Bd3 {[%emt 0:00:45]} Bxd3 {[%emt 0:12:22]} 16. Rxd3 {[%emt 0:00:06]} b5 {[%emt 0:01:38]} 17. Nd2 {[%emt 0:08:07]} Qa5 {[%emt 0:03:24]} 18. Ne4 {[%emt 0:03:19]} Qa4 {[%emt 0:07:40]} 19. Qxa4 {[%emt 0:15:39]} bxa4 {[%emt 0:00:03]} 20. c4 {[%emt 0:00:06]} Nxe3 {[%emt 0:01:57]} 21. fxe3 {[%emt 0:01:00]} f6 {[%emt 0:03:24]} 22. exf6 {[%emt 0:00:25]} gxf6 {[%emt 0:00:17]} 23. c5 {[%emt 0:00:48]} Rfd8 {[%emt 0:01:33]} 24. Rc4 {[%emt 0:03:14]} f5 {[%emt 0:01:52]} 25. Nd6 {[%emt 0:06:05]} Rb1+ {[%emt 0:10:17]} 26. Kf2 {[%emt 0:00:16]} Rb2+ {[%emt 0:00:29]} 27. Kf3 {[%emt 0:00:33]} Bxd6 {[%emt 0:03:15]} 28. cxd6 {[%emt 0:00:05]} Rxd6 {[%emt 0:00:25]} 29. Rxa4 {[%emt 0:02:36]} e5 {[%emt 0:00:52]} 30. Rc3 {[%emt 0:01:08]} exd4 {[%emt 0:02:03]} 31. exd4 {[%emt 0:02:38]} Rd2 {[%emt 0:00:27]} 32. Rcc4 {[%emt 0:02:47]} a5 {[%emt 0:01:05]} 33. Rxa5 {[%emt 0:03:18]} 1/2-1/2

[Event "IV Copa Marcel Duchamp 2020"]
[Site "Montevideo"]
[Date "2020.02.15"]
[Round "9.10"]
[White "Rodriguez Vila, Andres"]
[Black "Muniz, Rafael"]
[Result "1-0"]
[ECO "A45"]
[WhiteElo "2492"]
[BlackElo "2232"]
[Annotator "ChessBase"]
[PlyCount "85"]
[EventDate "2020.02.08"]
[EventType "swiss"]
[EventCountry "URU"]
[SourceTitle "playchess.com"]
[Source "ChessBase"]
[SourceQuality "1"]
[TimeControl "5400+30"]

1. d4 {[%emt 0:00:00]} Nf6 {[%emt 0:00:00]} 2. Bf4 {[%emt 0:00:00]} d5 {[%emt 0:00:00]} 3. e3 {[%emt 0:00:19]} e6 {[%emt 0:00:28]} 4. Nc3 {[%emt 0:00:48]} a6 {[%emt 0:00:14]} 5. g4 {[%emt 0:00:09]} c5 {[%emt 0:02:39]} 6. g5 {[%emt 0:00:05]} Nfd7 {[%emt 0:05:10]} 7. Nf3 {[%emt 0:00:25]} Nc6 {[%emt 0:00:59]} 8. Bg2 {[%emt 0:00:04]} Be7 {[%emt 0:01:56]} 9. h4 {[%emt 0:00:08]} Qa5 {[%emt 0:04:06]} 10. O-O {[%emt 0:03:42]} h6 {[%emt 0:09:23]} 11. gxh6 {[%emt 0:10:21]} gxh6 {[%emt 0:00:16]} 12. e4 {[%emt 0:01:55]} cxd4 {[%emt 0:14:40]} 13. Nxd4 {[%emt 0:01:58]} Nxd4 {[%emt 0:02:01]} 14. Qxd4 {[%emt 0:00:02]} Bf6 {[%emt 0:00:14]} 15. e5 {[%emt 0:00:07]} Bg7 {[%emt 0:05:44]} 16. Rfe1 {[%emt 0:00:43]} Qc5 {[%emt 0:03:03]} 17. Qd3 {[%emt 0:02:58]} Nb6 {[%emt 0:07:15]} 18. a4 {[%emt 0:00:14]} Bd7 {[%emt 0:04:26]} 19. a5 {[%emt 0:03:45]} Nc8 {[%emt 0:01:36]} 20. Qg3 {[%emt 0:00:06]} Bf8 {[%emt 0:03:40]} 21. b4 {[%emt 0:15:44]} Qxb4 {[%emt 0:11:55]} 22. Reb1 {[%emt 0:00:33]} Qc5 {[%emt 0:01:06]} 23. Rxb7 {[%emt 0:01:33]} Ne7 {[%emt 0:02:57]} 24. Rxd7 {[%emt 0:02:23]} Kxd7 {[%emt 0:01:08]} 25. Na4 {[%emt 0:00:06]} Qxa5 {[%emt 0:01:13]} 26. Qb3 {[%emt 0:01:13]} Ke8 {[%emt 0:01:50]} 27. Rb1 {[%emt 0:14:07]} Rg8 {[%emt 0:07:05]} 28. Qb7 {[%emt 0:00:51]} Rd8 {[%emt 0:00:29]} 29. Nb6 {[%emt 0:01:18]} Qc3 {[%emt 0:02:11]} 30. Qxa6 {[%emt 0:02:08]} Bg7 {[%emt 0:01:56]} 31. Kh1 {[%emt 0:06:54]} Kf8 {[%emt 0:03:43]} 32. Nd7+ {[%emt 0:18:19]} Ke8 {[%emt 0:00:07]} 33. Nb8 {[%emt 0:00:12]} Qc4 {[%emt 0:01:01]} 34. Qa5 {[%emt 0:03:15]} Qxf4 {[%emt 0:01:05]} 35. Qb5+ {[%emt 0:02:09]} Kf8 {[%emt 0:00:30]} 36. Nd7+ {[%emt 0:00:03]} Rxd7 {[%emt 0:01:05]} 37. Qb8+ {[%emt 0:00:02]} Nc8 {[%emt 0:00:39]} 38. Qxc8+ {[%emt 0:00:02]} Ke7 {[%emt 0:00:06]} 39. Qc5+ {[%emt 0:00:02]} Ke8 {[%emt 0:00:09]} 40. Rb8+ {[%emt 0:00:03]} Rd8 {[%emt 0:00:18]} 41. Qc6+ {[%emt 0:00:03]} Ke7 {[%emt 0:00:09]} 42. Qc7+ {[%emt 0:00:02]} Rd7 {[%emt 0:00:13]} 43. Qc5+ {[%emt 0:00:02]} 1-0

[Event "IV Copa Marcel Duchamp 2020"]
[Site "Montevideo"]
[Date "2020.02.15"]
[Round "9.11"]
[White "Vazquez, Facundo"]
[Black "Garcia Palermo, Carlos"]
[Result "1/2-1/2"]
[ECO "E16"]
[WhiteElo "2155"]
[BlackElo "2434"]
[Annotator "ChessBase"]
[PlyCount "137"]
[EventDate "2020.02.08"]
[EventType "swiss"]
[EventCountry "URU"]
[SourceTitle "playchess.com"]
[Source "ChessBase"]
[SourceQuality "1"]
[TimeControl "5400+30"]

1. d4 {[%emt 0:00:00]} Nf6 {[%emt 0:00:00]} 2. c4 {[%emt 0:00:00]} e6 {[%emt 0:00:00]} 3. Nf3 {[%emt 0:00:02]} Bb4+ {[%emt 0:00:00]} 4. Bd2 {[%emt 0:00:04]} Qe7 {[%emt 0:00:00]} 5. g3 {[%emt 0:00:26]} Bxd2+ {[%emt 0:00:35]} 6. Qxd2 {[%emt 0:00:44]} Nc6 {[%emt 0:00:18]} 7. Nc3 {[%emt 0:02:41]} d5 {[%emt 0:00:07]} 8. cxd5 {[%emt 0:03:12]} exd5 {[%emt 0:00:05]} 9. Bg2 {[%emt 0:01:08]} O-O {[%emt 0:00:09]} 10. O-O {[%emt 0:00:18]} Bg4 {[%emt 0:00:10]} 11. Qf4 {[%emt 0:09:07]} Rfe8 {[%emt 0:07:39]} 12. Rfe1 {[%emt 0:06:39]} Rad8 {[%emt 0:00:45]} 13. Rad1 {[%emt 0:05:14]} a6 {[%emt 0:03:23]} 14. h3 {[%emt 0:10:29]} Bc8 {[%emt 0:04:36]} 15. g4 {[%emt 0:05:31]} Ne4 {[%emt 0:04:04]} 16. Nxe4 {[%emt 0:05:21]} dxe4 {[%emt 0:00:11]} 17. Ng5 {[%emt 0:01:30]} Nxd4 {[%emt 0:22:14]} 18. Rc1 {[%emt 0:01:49]} c6 {[%emt 0:03:41]} 19. Nxe4 {[%emt 0:03:11]} f5 {[%emt 0:03:50]} 20. gxf5 {[%emt 0:02:28]} Bxf5 {[%emt 0:03:25]} 21. e3 {[%emt 0:02:34]} Ne2+ {[%emt 0:00:50]} 22. Rxe2 {[%emt 0:00:06]} Bxe4 {[%emt 0:00:07]} 23. Bxe4 {[%emt 0:01:13]} Qxe4 {[%emt 0:00:08]} 24. Qxe4 {[%emt 0:00:16]} Rxe4 {[%emt 0:00:06]} 25. f3 {[%emt 0:00:16]} Rh4 {[%emt 0:03:36]} 26. Kg2 {[%emt 0:03:58]} Rd6 {[%emt 0:00:27]} 27. Rh1 {[%emt 0:00:47]} Rc4 {[%emt 0:01:06]} 28. f4 {[%emt 0:01:03]} a5 {[%emt 0:00:54]} 29. e4 {[%emt 0:01:33]} Kf7 {[%emt 0:01:43]} 30. Rf1 {[%emt 0:01:58]} Rdd4 {[%emt 0:03:37]} 31. Kf3 {[%emt 0:02:01]} a4 {[%emt 0:00:17]} 32. Rff2 {[%emt 0:02:02]} b5 {[%emt 0:00:33]} 33. f5 {[%emt 0:03:05]} c5 {[%emt 0:02:49]} 34. Kf4 {[%emt 0:03:06]} b4 {[%emt 0:00:56]} 35. b3 {[%emt 0:03:44]} axb3 {[%emt 0:04:05]} 36. axb3 {[%emt 0:00:02]} Rc3 {[%emt 0:00:10]} 37. Ra2 {[%emt 0:00:13]} Rd7 {[%emt 0:02:05]} 38. Rfc2 {[%emt 0:01:25]} Rxb3 {[%emt 0:01:08]} 39. Rxc5 {[%emt 0:00:04]} Rxh3 {[%emt 0:00:25]} 40. Rb5 {[%emt 0:00:56]} Rh4+ {[%emt 0:04:06]} 41. Ke3 {[%emt 0:01:03]} b3 {[%emt 0:01:23]} 42. Rb2 {[%emt 0:00:26]} Rh3+ {[%emt 0:06:48]} 43. Kf4 {[%emt 0:00:16]} Re7 {[%emt 0:00:22]} 44. Rb4 {[%emt 0:02:26]} h6 {[%emt 0:03:37]} 45. R2xb3 {[%emt 0:00:46]} Rh4+ {[%emt 0:00:21]} 46. Kf3 {[%emt 0:00:07]} Rexe4 {[%emt 0:00:22]} 47. Rxe4 {[%emt 0:01:05]} Rh3+ {[%emt 0:00:06]} 48. Kf4 {[%emt 0:00:13]} Rxb3 {[%emt 0:00:06]} 49. Ra4 {[%emt 0:00:20]} Rb6 {[%emt 0:01:25]} 50. Ke5 {[%emt 0:01:54]} Kg8 {[%emt 0:00:16]} 51. Kf4 {[%emt 0:01:51]} Kh7 {[%emt 0:03:14]} 52. Rc4 {[%emt 0:01:05]} Rb1 {[%emt 0:00:09]} 53. Ra4 {[%emt 0:01:39]} Rf1+ {[%emt 0:00:23]} 54. Kg4 {[%emt 0:00:22]} Rg1+ {[%emt 0:00:32]} 55. Kf4 {[%emt 0:01:15]} h5 {[%emt 0:00:40]} 56. Ra6 {[%emt 0:01:15]} Rg4+ {[%emt 0:03:58]} 57. Kf3 {[%emt 0:00:15]} Kg8 {[%emt 0:02:31]} 58. Rg6 {[%emt 0:01:57]} Rxg6 {[%emt 0:00:31]} 59. fxg6 {[%emt 0:00:01]} Kf8 {[%emt 0:00:10]} 60. Kf4 {[%emt 0:00:29]} Ke7 {[%emt 0:00:05]} 61. Kg5 {[%emt 0:00:31]} h4 {[%emt 0:00:07]} 62. Kxh4 {[%emt 0:00:12]} Kf6 {[%emt 0:00:14]} 63. Kh5 {[%emt 0:00:28]} Kf5 {[%emt 0:00:07]} 64. Kh4 {[%emt 0:00:16]} Kxg6 {[%emt 0:00:06]} 65. Kg4 {[%emt 0:00:06]} Kf6 {[%emt 0:00:04]} 66. Kf4 {[%emt 0:00:11]} g5+ {[%emt 0:00:05]} 67. Kg4 {[%emt 0:00:06]} Kg6 {[%emt 0:00:06]} 68. Kg3 {[%emt 0:00:10]} g4 {[%emt 0:00:03]} 69. Kxg4 {[%emt 0:00:04]} 1/2-1/2

[Event "IV Copa Marcel Duchamp 2020"]
[Site "Montevideo"]
[Date "2020.02.15"]
[Round "9.12"]
[White "Munoz Perez, Rolando"]
[Black "Vitoux, Colomban"]
[Result "1/2-1/2"]
[ECO "D91"]
[WhiteElo "2130"]
[BlackElo "2377"]
[Annotator "ChessBase"]
[PlyCount "92"]
[EventDate "2020.02.08"]
[EventType "swiss"]
[EventCountry "URU"]
[SourceTitle "playchess.com"]
[Source "ChessBase"]
[SourceQuality "1"]
[TimeControl "5400+30"]

1. d4 Nf6 {[%emt 0:00:15]} 2. c4 {[%emt 0:00:00]} g6 3. Nc3 d5 {[%emt 0:00:39]} 4. Nf3 {[%emt 0:00:00]} Bg7 {[%emt 0:00:29]} 5. Bg5 {[%emt 0:00:11]} Ne4 {[%emt 0:01:19]} 6. cxd5 {[%emt 0:00:26]} Nxg5 {[%emt 0:02:18]} 7. Nxg5 {[%emt 0:00:08]} c6 {[%emt 0:00:29]} 8. Nf3 {[%emt 0:06:26]} cxd5 {[%emt 0:00:47]} 9. Qb3 {[%emt 0:00:25]} e6 {[%emt 0:01:21]} 10. e3 {[%emt 0:00:22]} Nc6 {[%emt 0:00:06]} 11. Be2 {[%emt 0:00:33]} O-O {[%emt 0:00:20]} 12. O-O {[%emt 0:00:14]} Na5 {[%emt 0:07:31]} 13. Qc2 {[%emt 0:03:11]} Bd7 {[%emt 0:04:13]} 14. Rac1 {[%emt 0:00:29]} Qe7 {[%emt 0:03:24]} 15. Bb5 {[%emt 0:06:00]} Bxb5 {[%emt 0:06:05]} 16. Nxb5 {[%emt 0:00:10]} a6 {[%emt 0:01:28]} 17. Nc3 {[%emt 0:06:19]} Rfc8 {[%emt 0:01:37]} 18. b3 {[%emt 0:01:30]} Rc6 {[%emt 0:07:01]} 19. Qb2 {[%emt 0:00:33]} Rac8 {[%emt 0:01:24]} 20. Ne2 {[%emt 0:02:12]} f6 {[%emt 0:05:15]} 21. Rfd1 {[%emt 0:02:54]} Bf8 {[%emt 0:00:58]} 22. Rxc6 {[%emt 0:00:42]} Rxc6 {[%emt 0:00:59]} 23. Rc1 {[%emt 0:00:27]} Qc7 {[%emt 0:10:26]} 24. Rxc6 {[%emt 0:06:37]} Nxc6 {[%emt 0:00:35]} 25. Qc2 {[%emt 0:02:41]} Qa5 {[%emt 0:05:54]} 26. g3 {[%emt 0:02:31]} Bb4 {[%emt 0:02:35]} 27. e4 {[%emt 0:01:50]} Kf7 {[%emt 0:08:51]} 28. Nf4 {[%emt 0:02:23]} Bd6 {[%emt 0:01:29]} 29. exd5 {[%emt 0:03:15]} exd5 {[%emt 0:00:11]} 30. Nd3 {[%emt 0:01:09]} Qb6 {[%emt 0:01:50]} 31. Qc3 {[%emt 0:00:48]} Qd8 {[%emt 0:05:16]} 32. Nc5 {[%emt 0:02:46]} Qe7 {[%emt 0:03:22]} 33. Nxa6 {[%emt 0:00:57]} Qe4 {[%emt 0:02:31]} 34. Nc5 {[%emt 0:08:56]} Bxc5 {[%emt 0:00:02]} 35. dxc5 {[%emt 0:00:15]} d4 {[%emt 0:00:32]} 36. Qc4+ {[%emt 0:00:43]} Kg7 {[%emt 0:05:03]} 37. Nd2 {[%emt 0:00:54]} Qe1+ {[%emt 0:00:12]} 38. Nf1 {[%emt 0:00:08]} Ne5 {[%emt 0:01:14]} 39. Qd5 {[%emt 0:00:30]} d3 {[%emt 0:05:38]} 40. Kg2 {[%emt 0:00:35]} Kh6 {[%emt 0:03:13]} 41. h3 {[%emt 0:01:59]} g5 {[%emt 0:00:50]} 42. a3 {[%emt 0:00:45]} Qc3 {[%emt 0:01:11]} 43. Qd6 {[%emt 0:02:22]} Kg6 {[%emt 0:00:26]} 44. Qd5 {[%emt 0:00:38]} Kh6 {[%emt 0:00:03]} 45. Qd6 {[%emt 0:00:09]} Kg6 {[%emt 0:01:03]} 46. Qd5 {[%emt 0:00:09]} Kh6 {[%emt 0:01:01]} 1/2-1/2

[Event "IV Copa Marcel Duchamp 2020"]
[Site "Montevideo"]
[Date "2020.02.15"]
[Round "9.13"]
[White "Contin, Daniel"]
[Black "Coppola, Claudio"]
[Result "0-1"]
[ECO "A10"]
[WhiteElo "2267"]
[BlackElo "2314"]
[Annotator "ChessBase"]
[PlyCount "106"]
[EventDate "2020.02.08"]
[EventType "swiss"]
[EventCountry "URU"]
[SourceTitle "playchess.com"]
[Source "ChessBase"]
[SourceQuality "1"]
[TimeControl "5400+30"]

1. c4 {[%emt 0:05:57]} b6 {[%emt 0:18:43]} 2. d4 {[%emt 0:00:43]} Bb7 {[%emt 0:00:04]} 3. Nc3 {[%emt 0:00:19]} e6 {[%emt 0:00:12]} 4. a3 {[%emt 0:00:45]} f5 {[%emt 0:00:56]} 5. d5 {[%emt 0:04:36]} Nf6 {[%emt 0:02:32]} 6. g3 {[%emt 0:04:41]} Be7 {[%emt 0:03:05]} 7. Bg2 {[%emt 0:00:02]} Na6 {[%emt 0:11:13]} 8. b4 {[%emt 0:03:08]} O-O {[%emt 0:00:19]} 9. Nh3 {[%emt 0:06:56]} exd5 {[%emt 0:04:33]} 10. Nf4 {[%emt 0:08:07]} Ne4 {[%emt 0:01:33]} 11. Ncxd5 {[%emt 0:00:17]} Bf6 {[%emt 0:00:54]} 12. Ra2 {[%emt 0:06:48]} Nc3 {[%emt 0:02:46]} 13. Nxc3 {[%emt 0:06:58]} Bxg2 {[%emt 0:00:43]} 14. Nxg2 {[%emt 0:00:04]} Bxc3+ {[%emt 0:00:07]} 15. Kf1 {[%emt 0:03:11]} Qe7 {[%emt 0:05:43]} 16. Qd3 {[%emt 0:07:16]} Be5 {[%emt 0:06:02]} 17. h4 {[%emt 0:08:09]} c6 {[%emt 0:02:23]} 18. Bf4 {[%emt 0:00:58]} Rad8 {[%emt 0:22:46]} 19. Rd2 {[%emt 0:06:07]} Nc7 {[%emt 0:01:40]} 20. Qe3 {[%emt 0:07:01]} Rfe8 {[%emt 0:00:11]} 21. Bg5 {[%emt 0:02:30]} Bf6 {[%emt 0:00:09]} 22. Qxe7 {[%emt 0:00:05]} Bxe7 {[%emt 0:00:14]} 23. Bf4 {[%emt 0:05:37]} Ne6 {[%emt 0:00:22]} 24. Ne3 {[%emt 0:00:01]} Nxf4 {[%emt 0:00:59]} 25. gxf4 {[%emt 0:00:02]} g6 {[%emt 0:00:51]} 26. Kg2 {[%emt 0:00:10]} a5 {[%emt 0:00:28]} 27. Rhd1 {[%emt 0:01:31]} axb4 {[%emt 0:01:41]} 28. axb4 {[%emt 0:00:01]} Bxb4 {[%emt 0:00:05]} 29. Rxd7 {[%emt 0:00:03]} Rxd7 {[%emt 0:00:08]} 30. Rxd7 {[%emt 0:00:01]} Bc5 {[%emt 0:00:09]} 31. Kf3 {[%emt 0:00:24]} Re4 {[%emt 0:01:08]} 32. Rd8+ {[%emt 0:00:16]} Kf7 {[%emt 0:01:05]} 33. Rd7+ {[%emt 0:00:03]} Ke6 {[%emt 0:00:08]} 34. Rxh7 {[%emt 0:00:57]} Bxe3 {[%emt 0:00:05]} 35. fxe3 {[%emt 0:00:17]} Rxc4 {[%emt 0:00:06]} 36. h5 {[%emt 0:00:42]} gxh5 {[%emt 0:00:09]} 37. Rh6+ {[%emt 0:00:13]} Kd7 {[%emt 0:01:19]} 38. Rxh5 {[%emt 0:00:25]} Ke6 {[%emt 0:01:46]} 39. Rh6+ {[%emt 0:01:04]} Kf7 {[%emt 0:00:02]} 40. Kg3 {[%emt 0:04:30]} b5 {[%emt 0:00:32]} 41. Kh4 {[%emt 0:00:01]} b4 {[%emt 0:01:05]} 42. Kg5 {[%emt 0:00:59]} Rc5 {[%emt 0:00:06]} 43. e4 {[%emt 0:01:33]} b3 {[%emt 0:01:15]} 44. exf5 {[%emt 0:00:55]} b2 {[%emt 0:00:30]} 45. Rh1 {[%emt 0:00:51]} Rc1 {[%emt 0:00:14]} 46. Rh7+ {[%emt 0:00:33]} Kg8 {[%emt 0:00:17]} 47. Ra7 {[%emt 0:02:57]} b1=Q {[%emt 0:00:56]} 48. Ra8+ {[%emt 0:00:05]} Kf7 {[%emt 0:00:07]} 49. Ra7+ {[%emt 0:00:07]} Ke8 {[%emt 0:00:02]} 50. Ra8+ {[%emt 0:00:18]} Kd7 {[%emt 0:00:07]} 51. Ra7+ {[%emt 0:00:21]} Kd6 {[%emt 0:00:16]} 52. e4 {[%emt 0:00:14]} Qxe4 {[%emt 0:00:36]} 53. Kf6 {[%emt 0:00:11]} Qd4+ {[%emt 0:00:07] Ke5+ Kxe5} 0-1